bitfinex-derivatives/quotes_SOLF0:USTF0_20260203
["timestamp","ask_amount","ask_price","bid_price","bid_amount"]
[1770081504443,279.70138276,103.63,103.56,5.32667497]
[1770081504853,2.38138276,103.61,103.56,5.32667497]
[1770081505143,2.38138276,103.59,103.53,5.34974673]
[1770081506446,11.07768276,103.59,103.54,5.34974601]
[1770081506647,2.38138276,103.58,103.52,5.34974601]
[1770081507848,11.07688276,103.6,103.54,5.34757376]
[1770081508044,2.38138276,103.61,103.55,5.34757307]
[1770081508746,8.6947,103.61,103.56,5.34757307]
[1770081509349,2.38138276,103.63,103.57,5.3497395]
[1770081510439,11.07438276,103.63,103.57,14.0475395]
[1770081510849,8.694,103.62,103.57,5.3497395]
[1770081511449,11.07448276,103.63,103.57,5.3497395]
[1770081512343,11.07448276,103.63,103.58,5.31761784]
[1770081512749,11.07348276,103.64,103.58,5.31761784]
[1770081513848,8.6921,103.64,103.58,5.31761784]
[1770081514152,8.6921,103.64,103.59,5.31528364]
[1770081514843,11.07268276,103.65,103.59,14.01148364]
[1770081515047,11.07268276,103.65,103.6,5.29739276]
[1770081515452,8.6921,103.64,103.6,5.29739276]
[1770081515652,8.6921,103.64,103.58,13.99439276]
[1770081515854,2.38138276,103.65,103.59,5.29739276]
[1770081516049,11.07248276,103.66,103.61,5.29739221]
[1770081516250,2.38138276,103.68,103.61,5.29739221]
[1770081516456,2.38138276,103.69,103.62,5.29739221]
[1770081516848,2.38138276,103.7,103.63,5.29739221]
[1770081517054,2.38138276,103.7,103.64,5.30395369]
[1770081517655,2.38138276,103.69,103.64,5.30395369]
[1770081518154,2.38138276,103.7,103.64,5.30395369]
[1770081518857,2.38138276,103.71,103.65,5.313741]
[1770081519553,11.06798276,103.71,103.65,5.313741]
[1770081520755,8.6866,103.71,103.65,5.313741]
[1770081520953,2.38138276,103.72,103.65,5.313741]
[1770081521155,2.38138276,103.72,103.66,14.04819795]
[1770081521958,264.30138276,103.75,103.68,5.35789734]
[1770081522261,135.0656,103.76,103.68,5.35789734]
[1770081522262,2.38138276,103.76,103.69,5.35789734]
[1770081522556,8.6837,103.75,103.69,5.35789734]
[1770081522756,2.38138276,103.75,103.69,5.35789734]
[1770081524360,11.06428276,103.75,103.69,14.04579734]
[1770081526360,2.38138276,103.73,103.67,5.40942933]
[1770081527462,2.38138276,103.73,103.68,5.40737686]
[1770081528757,2.38138276,103.73,103.68,14.09607686]
[1770081528962,11.06438276,103.75,103.69,5.40069394]
[1770081529460,11.06438276,103.75,103.7,5.40069394]
[1770081529660,8.6839,103.74,103.7,5.40069394]
[1770081529968,11.06528276,103.74,103.68,5.40069394]
[1770081530169,2.38138276,103.74,103.68,5.40069394]
[1770081530466,135.056,103.76,103.68,5.40069394]
[1770081531162,135.056,103.76,103.69,5.42095594]
[1770081532466,8.6838,103.74,103.69,5.42095594]
[1770081534167,8.6846,103.73,103.69,5.42095594]
[1770081536166,135.0868,103.74,103.66,8.6897]
[1770081536468,276.58611062,103.73,103.66,5.41138404]
[1770081537570,135.1074,103.72,103.64,5.28098877]
[1770081538470,8.688,103.69,103.64,5.28098877]
[1770081539066,8.688,103.69,103.64,13.97298877]
[1770081540169,8.687,103.71,103.65,5.26630821]
[1770081540471,8.687,103.71,103.66,5.26630821]
[1770081540774,8.6847,103.73,103.66,5.26630821]
[1770081540970,356.54,103.76,103.69,5.2615148]
[1770081540971,491.5965,103.76,103.69,5.2615148]
[1770081541371,135.0565,103.76,103.69,5.2615148]
[1770081542275,8.6844,103.74,103.69,5.2615148]
[1770081542779,491.7716,103.77,103.69,5.2615148]
[1770081543084,135.0263,103.79,103.71,5.25571753]
[1770081543581,8.682,103.77,103.72,5.25571753]
[1770081543778,357.6,103.8,103.72,5.25571753]
[1770081544580,8.6804,103.78,103.72,13.94111753]
[1770081546993,8.6814,103.77,103.72,5.25571753]
[1770081547887,8.6826,103.76,103.72,5.25571753]
[1770081548084,8.6826,103.76,103.7,5.28149799]
[1770081548987,141.42901062,103.77,103.68,13.96389767]
[1770081549188,135.0554,103.76,103.69,5.27509767]
[1770081549789,8.6845,103.74,103.69,5.27509767]
[1770081549985,493.1754,103.76,103.67,216.14409733]
[1770081550697,493.1754,103.76,103.68,5.27509733]
[1770081551195,8.6846,103.73,103.68,5.27509733]
[1770081551395,493.1754,103.76,103.68,13.96379733]
[1770081551594,493.1754,103.76,103.69,5.26832286]
[1770081552197,135.0554,103.76,103.69,5.26832286]
[1770081552495,8.6838,103.74,103.69,5.26832286]
[1770081557298,8.6829,103.75,103.7,5.2161034]
[1770081559102,8.6843,103.74,103.68,5.21374786]
[1770081561895,141.45111062,103.75,103.66,8.6903]
[1770081562105,499.37111062,103.75,103.66,13.86399281]
[1770081562497,8.6856,103.72,103.66,13.86399281]
[1770081562693,8.6856,103.72,103.67,5.17369281]
[1770081564506,135.0829,103.74,103.67,5.17369281]
[1770081565107,284.19437709,103.73,103.65,5.17184898]
[1770081565307,276.58681062,103.73,103.65,5.17184898]
[1770081565507,8.6873,103.7,103.65,5.17184898]
[1770081568106,135.0829,103.74,103.66,5.119399]
[1770081568307,135.0978,103.73,103.66,5.119399]
[1770081568501,135.1089,103.72,103.64,5.119399]
[1770081568696,8.6878,103.7,103.64,13.811399]
[1770081569407,8.6878,103.7,103.65,5.09468788]
[1770081569600,8.6863,103.71,103.66,5.09468788]
[1770081571207,8.6855,103.72,103.66,13.78498788]
[1770081571408,8.6855,103.72,103.67,5.06471195]
[1770081572506,11.06723188,103.72,103.67,5.06471195]
[1770081574413,8.6855,103.72,103.67,5.06471195]
[1770081574907,135.0958,103.73,103.65,13.58997432]
[1770081575106,135.0958,103.73,103.66,4.89887432]
[1770081576215,8.6863,103.71,103.66,4.89887432]
[1770081576408,8.6863,103.71,103.66,13.58927432]
[1770081576608,8.6853,103.73,103.67,4.89887436]
[1770081577108,495.9829,103.74,103.63,336.3433]
[1770081577314,8.6863,103.71,103.64,4.8702354]
[1770081577920,8.6863,103.71,103.66,4.87023547]
[1770081579715,8.6871,103.7,103.64,13.56292235]
[1770081580514,141.5024237,103.71,103.63,13.56382241]
[1770081581321,141.5269237,103.69,103.61,13.46251285]
[1770081581515,141.5269237,103.69,103.61,4.76831285]
[1770081581917,8.6907,103.66,103.61,4.76831285]
[1770081582120,135.1864,103.66,103.58,4.76831298]
[1770081582314,6.3796237,103.65,103.58,4.76831298]
[1770081582518,8.693,103.63,103.58,4.76831298]
[1770081584516,504.0392237,103.65,103.56,4.73755171]
[1770081585219,141.5792237,103.65,103.56,4.73755171]
[1770081585418,504.5592237,103.65,103.56,4.73755171]
[1770081586319,135.2151,103.64,103.56,4.73755171]
[1770081586519,141.6046237,103.63,103.56,4.73755171]
[1770081587318,8.6947,103.61,103.56,4.73755171]
[1770081588321,8.6947,103.61,103.54,13.43353324]
[1770081589111,8.6955,103.6,103.54,4.73383324]
[1770081589720,8.6963,103.59,103.54,4.73383324]
[1770081590321,8.6955,103.6,103.54,4.73383324]
[1770081591620,8.6963,103.59,103.54,4.73383324]
[1770081592720,8.6963,103.59,103.53,8.7013]
[1770081593027,135.2785,103.59,103.52,4.75145594]
[1770081593220,141.6581237,103.59,103.5,4.75090887]
[1770081593421,505.3981237,103.59,103.5,13.45400887]
[1770081594124,8.6988,103.57,103.5,13.45400887]
[1770081594524,505.7381237,103.59,103.5,4.75090887]
[1770081594525,135.293,103.58,103.5,4.75090887]
[1770081595825,505.7381237,103.59,103.51,4.75692724]
[1770081596421,8.6988,103.56,103.51,4.75692724]
[1770081596920,8.6997,103.55,103.49,13.46663748]
[1770081598325,8.6989,103.56,103.49,13.46663748]
[1770081598728,8.6981,103.57,103.51,4.76193759]
[1770081599126,364.84,103.58,103.51,4.76193759]
[1770081599422,500.1305,103.58,103.51,4.76193759]
[1770081600029,364.84,103.58,103.51,4.76193759]
[1770081600229,141.65056401,103.61,103.51,4.76193759]
[1770081600428,507.31056401,103.61,103.51,4.76193759]
[1770081601025,135.2642,103.6,103.52,4.77321091]
[1770081601726,501.0042,103.6,103.52,4.77321091]
[1770081602424,141.63286401,103.63,103.52,4.77321091]
[1770081602625,507.83286401,103.63,103.52,4.77321091]
[1770081602928,141.64926401,103.61,103.53,4.77074321]
[1770081603326,8.6963,103.6,103.53,4.77074321]
[1770081603521,508.00926401,103.61,103.53,4.77074321]
[1770081604723,276.96866401,103.59,103.51,4.77074331]
[1770081604928,644.18866401,103.59,103.51,4.77074331]
[1770081605426,276.96866401,103.59,103.51,4.77074331]
[1770081605621,367.6,103.58,103.51,4.77074331]
[1770081605929,8.6993,103.56,103.51,4.77074331]
[1770081606135,502.8926,103.58,103.48,2.77948636]
[1770081606330,141.75636401,103.53,103.45,4.6170975]
[1770081606524,368.42,103.52,103.45,4.6170975]
[1770081607128,141.73826401,103.55,103.45,4.6170975]
[1770081607329,369.28,103.54,103.45,4.6170975]
[1770081608031,504.7512,103.57,103.47,4.64091155]
[1770081608332,135.319,103.56,103.47,4.64091155]
[1770081608525,8.7009,103.54,103.48,13.34561155]
[1770081610731,8.7014,103.53,103.48,4.64091155]
[1770081611632,141.74256401,103.54,103.46,4.62794072]
[1770081612435,375.55846401,103.54,103.47,4.62794089]
[1770081612634,369.16,103.54,103.47,4.62794089]
[1770081613134,135.3343,103.55,103.47,4.62794089]
[1770081613532,8.7014,103.53,103.47,4.62794089]
[1770081613731,511.43956401,103.56,103.47,4.62794089]
[1770081613932,8.7007,103.54,103.48,13.33642968]
[1770081614333,369.72,103.56,103.49,4.63092968]
[1770081615433,378.4194,103.56,103.49,13.33562968]
[1770081615634,378.4194,103.56,103.49,4.63092968]
[1770081615936,8.698,103.57,103.5,13.44415191]
[1770081616338,512.60936401,103.58,103.5,13.44415191]
[1770081616636,512.66936401,103.58,103.5,13.44415191]
[1770081616830,512.66936401,103.58,103.5,4.74025191]
[1770081617334,135.3047,103.57,103.48,13.45930186]
[1770081617524,513.47976401,103.56,103.48,4.75390186]
[1770081617730,371.76,103.55,103.46,4.75390186]
[1770081619036,8.7006,103.54,103.47,13.46847778]
[1770081619228,141.71976401,103.56,103.47,13.46847778]
[1770081619432,507.5689,103.55,103.47,13.46847778]
[1770081619937,8.7006,103.54,103.48,4.76287787]
[1770081621731,8.7006,103.54,103.48,13.46827787]
[1770081622334,372.24,103.55,103.45,164.4179]
[1770081622335,8.6998,103.55,103.49,4.72835202]
[1770081622739,8.6998,103.55,103.49,13.43285202]
[1770081623037,8.6998,103.55,103.5,4.76205382]
[1770081623935,141.67076401,103.6,103.52,4.7620539]
[1770081624133,373.86,103.59,103.52,4.7620539]
[1770081624334,373.88,103.59,103.52,4.7620539]
[1770081624936,8.6972,103.58,103.52,4.7620539]
[1770081625137,8.6972,103.58,103.52,13.4641539]
[1770081625840,374.5,103.58,103.5,4.71731461]
[1770081626242,374.6,103.58,103.5,4.71731461]
[1770081626741,8.6981,103.57,103.5,13.42111461]
[1770081627038,374.6,103.58,103.5,4.71731461]
[1770081627430,8.6982,103.57,103.51,4.69257523]
[1770081627740,374.6,103.58,103.51,4.69257523]
[1770081627936,8.6981,103.57,103.51,4.69257523]
[1770081628740,135.2585,103.61,103.53,4.69257534]
[1770081628940,511.3185,103.61,103.53,4.69257534]
[1770081629140,135.2585,103.61,103.53,4.69257534]
[1770081629441,511.3985,103.61,103.53,4.69257534]
[1770081630341,8.6964,103.59,103.53,13.39387534]
[1770081630842,8.6964,103.59,103.53,4.69257534]
[1770081632038,8.6964,103.59,103.53,13.39377534]
[1770081632737,8.6955,103.6,103.54,13.37075484]
[1770081633436,8.6965,103.59,103.54,4.67025484]
[1770081633643,512.2715,103.61,103.52,13.36625649]
[1770081633835,135.2664,103.6,103.52,13.36625649]
[1770081634843,512.2715,103.61,103.53,13.36578317]
[1770081635145,135.2515,103.61,103.53,13.36578317]
[1770081635438,512.9115,103.61,103.53,13.36578317]
[1770081636434,8.6965,103.59,103.53,13.36578317]
[1770081637443,8.6956,103.6,103.54,4.64457993]
[1770081638446,8.6956,103.6,103.54,13.34497993]
[1770081638948,8.6966,103.59,103.54,4.64457993]
[1770081640544,8.6972,103.58,103.53,8.7012]
[1770081640845,8.6972,103.58,103.53,13.33929013]
[1770081644450,8.6964,103.59,103.53,13.33929013]
[1770081645951,8.6972,103.58,103.53,4.63809013]
[1770081646352,512.9109,103.61,103.53,4.63809013]
[1770081646853,8.6972,103.58,103.53,4.63809013]
[1770081652548,11.08482742,103.58,103.53,4.63809013]
[1770081652752,8.6972,103.58,103.53,13.33939013]
[1770081654259,11.08412742,103.59,103.54,4.6127574]
[1770081655353,8.6965,103.59,103.54,4.6127574]
[1770081655754,11.08332742,103.6,103.54,13.3126574]
[1770081655954,8.6957,103.6,103.54,4.6127574]
[1770081656348,2.38762742,103.62,103.56,4.60949621]
[1770081656652,2.38762742,103.64,103.57,4.60949621]
[1770081657351,8.6931,103.63,103.57,13.30729621]
[1770081657751,2.38762742,103.62,103.57,4.60949621]
[1770081658052,2.38762742,103.6,103.55,4.61002462]
[1770081658444,11.08251127,103.6,103.55,4.61002462]
[1770081659847,11.08161127,103.61,103.55,13.30962462]
[1770081660552,8.6946,103.61,103.55,13.30962462]
[1770081661857,8.6937,103.63,103.57,4.71226203]
[1770081662453,135.2082,103.65,103.56,8.6985]
[1770081662454,8.692,103.65,103.58,4.7122621]
[1770081662758,135.1523,103.69,103.59,4.7122621]
[1770081662959,399.2323,103.69,103.62,4.71475957]
[1770081663261,8.6895,103.68,103.62,4.71475957]
[1770081664357,8.6878,103.7,103.63,13.40745964]
[1770081665358,135.1208,103.71,103.63,4.71475964]
[1770081665558,503.3408,103.71,103.63,4.71475964]
[1770081665862,135.1359,103.7,103.63,4.71475964]
[1770081666059,135.1535,103.69,103.61,4.7251499]
[1770081666358,135.1601,103.68,103.6,13.4198499]
[1770081666855,135.1535,103.69,103.61,8.6945]
[1770081667060,141.5282825,103.7,103.62,4.72690233]
[1770081668362,8.6888,103.68,103.62,13.42050233]
[1770081670857,8.6888,103.68,103.63,4.66565519]
[1770081671664,8.6877,103.7,103.64,4.66565519]
[1770081672158,141.5014825,103.72,103.64,13.35765519]
[1770081672363,520.9814825,103.72,103.64,13.35765519]
[1770081673462,8.6879,103.69,103.64,13.35765519]
[1770081673666,520.9814825,103.72,103.64,13.35765519]
[1770081674269,8.6872,103.7,103.64,13.35765519]
[1770081675872,8.6864,103.71,103.65,8.6912]
[1770081676265,8.6857,103.72,103.67,4.66234737]
[1770081676769,522.2882825,103.76,103.67,4.66234737]
[1770081676966,522.2882825,103.76,103.69,4.66234737]
[1770081676967,8.6845,103.74,103.69,4.66234737]
[1770081680472,8.6847,103.73,103.67,13.3807899]
[1770081681872,141.5007825,103.72,103.64,4.69076055]
[1770081682073,522.7807825,103.72,103.64,4.69076055]
[1770081682677,523.1407825,103.72,103.64,4.69076055]
[1770081683177,8.6881,103.69,103.64,4.69076055]
[1770081689582,8.6881,103.69,103.63,13.37660463]
[1770081690182,135.1488,103.69,103.61,4.68400468]
[1770081691285,8.6898,103.67,103.61,13.37850468]
[1770081693191,8.6898,103.67,103.62,4.68000096]
[1770081695887,135.1344,103.7,103.62,13.37380096]
[1770081696095,8.6889,103.68,103.62,13.37380096]
[1770081696893,8.6889,103.68,103.63,13.41996784]
[1770081697190,135.1084,103.72,103.64,4.72716784]
[1770081697992,135.1236,103.71,103.64,4.72716784]
[1770081698395,141.5159825,103.71,103.64,4.72716784]
[1770081699288,8.688,103.69,103.64,4.72716784]
[1770081700090,6.3923825,103.69,103.62,13.42747709]
[1770081700592,8.6896,103.67,103.62,4.73387709]
[1770081700792,135.1593,103.68,103.6,4.73387709]
[1770081701194,141.5668825,103.67,103.6,4.73387709]
[1770081701394,524.9068825,103.67,103.6,4.73387709]
[1770081702295,135.1861,103.66,103.6,4.73387709]
[1770081702595,135.1861,103.66,103.57,4.73344838]
[1770081703298,488.2468825,103.67,103.59,4.75323221]
[1770081703998,8.692,103.65,103.59,4.75323221]
[1770081705095,8.6923,103.64,103.59,4.75323221]
[1770081705496,135.2012,103.65,103.57,4.80640218]
[1770081705691,135.2122,103.64,103.57,4.80640218]
[1770081705897,135.2122,103.64,103.55,4.80640218]
[1770081705898,135.2384,103.62,103.55,4.80640218]
[1770081706392,520.1384,103.62,103.55,4.80640218]
[1770081707201,8.6963,103.59,103.53,13.50558336]
[1770081709306,6.3923825,103.61,103.54,13.46997255]
[1770081709506,399.5184,103.62,103.54,13.46997255]
[1770081709701,399.5184,103.62,103.54,4.76957255]
[1770081710002,8.6963,103.59,103.54,4.76957255]
[1770081710202,399.5184,103.62,103.54,4.76957255]
[1770081710805,8.6951,103.61,103.55,4.76963238]
[1770081712305,8.6951,103.61,103.55,13.46933238]
[1770081712507,6.3923825,103.63,103.56,4.78382857]
[1770081712707,141.5935825,103.65,103.56,4.78382857]
[1770081714408,141.5935825,103.65,103.57,4.76617771]
[1770081715309,8.6926,103.64,103.57,13.46367771]
[1770081716206,8.6926,103.64,103.58,8.6971]
[1770081716510,8.6926,103.64,103.58,4.76967001]
[1770081717406,8.6914,103.65,103.59,13.55510668]
[1770081722413,11.07634258,103.65,103.59,13.55510668]
[1770081722613,11.07544258,103.66,103.6,4.83285353]
[1770081723314,2.38494258,103.64,103.59,8.6957]
[1770081723613,2.38494258,103.64,103.59,13.50777923]
[1770081724013,11.07624258,103.65,103.6,4.81207925]
[1770081724410,8.6913,103.65,103.6,4.81207925]
[1770081724610,2.38494258,103.66,103.6,13.50757925]
[1770081725106,2.38494258,103.7,103.62,2.38494258]
[1770081725306,2.38494258,103.7,103.63,13.4901076]
[1770081725904,2.38494258,103.71,103.65,4.7972076]
[1770081726105,2.38494258,103.7,103.65,4.7972076]
[1770081726614,135.1076,103.72,103.65,13.4882076]
[1770081726615,8.6862,103.72,103.65,13.4882076]
[1770081726817,141.47933955,103.73,103.65,4.7972076]
[1770081727112,8.6864,103.71,103.65,4.7972076]
[1770081727414,6.38193955,103.73,103.65,4.7972076]
[1770081727614,520.1308,103.74,103.65,4.7972076]
[1770081727911,385.04,103.74,103.67,4.84681616]
[1770081728316,6.38193955,103.75,103.67,4.84681616]
[1770081729413,8.6847,103.73,103.67,4.84681616]
[1770081729915,8.6847,103.73,103.66,4.8453292]
[1770081730214,8.6856,103.72,103.66,4.8453292]
[1770081731813,496.6617,103.74,103.66,4.8453292]
[1770081732014,361.58,103.74,103.66,13.5356292]
[1770081732216,361.58,103.74,103.67,4.84575392]
[1770081732510,8.6837,103.75,103.69,4.84575392]
[1770081733418,8.6837,103.75,103.68,8.6887]
[1770081733618,8.6837,103.75,103.68,13.54435206]
[1770081734417,8.6837,103.75,103.69,4.85565207]
[1770081736522,141.43393955,103.77,103.7,4.88415198]
[1770081736813,141.40853955,103.79,103.7,4.88415198]
[1770081737019,8.681,103.78,103.71,4.87477287]
[1770081737610,8.6813,103.77,103.71,13.56077287]
[1770081737818,8.6813,103.77,103.71,4.87477287]
[1770081738219,141.42513955,103.77,103.69,4.87477288]
[1770081738621,6.38193955,103.77,103.69,4.87477288]
[1770081739124,519.8318,103.78,103.69,4.87477288]
[1770081739320,8.6823,103.76,103.69,13.56257288]
[1770081739720,8.6823,103.76,103.7,4.86962892]
[1770081740126,8.6833,103.75,103.7,4.86962892]
[1770081740925,141.38023955,103.81,103.7,4.86962892]
[1770081741227,135.0197,103.79,103.7,4.86962892]
[1770081741525,8.6813,103.77,103.7,4.86962892]
[1770081742021,8.6813,103.77,103.71,8.6861]
[1770081742225,135.0038,103.8,103.72,4.90765998]
[1770081742418,135.0163,103.79,103.72,4.90765998]
[1770081742615,135.0163,103.79,103.67,135.1605]
[1770081742616,135.0327,103.78,103.7,4.90765998]
[1770081742924,8.681,103.78,103.71,4.90765998]
[1770081743125,519.7363,103.79,103.71,4.90765998]
[1770081743527,8.6813,103.77,103.71,13.59385998]
[1770081744223,135.0038,103.8,103.72,13.59552638]
[1770081744823,393.398,103.81,103.74,13.59382638]
[1770081745723,8.6789,103.8,103.74,4.91012638]
[1770081748628,2.37829646,103.79,103.74,4.91012638]
[1770081750131,11.05719646,103.8,103.74,4.91012638]
[1770081750829,393.2979,103.81,103.74,13.59382638]
[1770081751030,395.67619646,103.81,103.75,4.91358493]
[1770081751226,8.6779,103.81,103.76,4.91358493]
[1770081751930,8.6771,103.82,103.77,4.91358493]
[1770081752628,11.05449646,103.83,103.77,4.91358493]
[1770081752823,134.8956,103.89,103.79,4.91358493]
[1770081753027,2.37829646,103.87,103.8,4.90895362]
[1770081753230,2.37829646,103.87,103.81,4.90895362]
[1770081753422,2.37829646,103.87,103.8,2.37829646]
[1770081753423,2.37829646,103.89,103.83,4.90895362]
[1770081753833,2.37829646,103.87,103.81,4.90895362]
[1770081754126,11.05119646,103.87,103.81,4.90895362]
[1770081754431,384.56,103.9,103.82,4.90895362]
[1770081754832,384.56,103.9,103.84,4.85200154]
[1770081755028,134.8605,103.91,103.84,4.85200154]
[1770081755328,525.75552342,103.92,103.84,4.85200154]
[1770081755534,8.6704,103.91,103.85,4.85200154]
[1770081756030,384.5,103.93,103.86,4.85200155]
[1770081756331,519.2946,103.93,103.86,4.85200155]
[1770081757328,8.6696,103.91,103.86,4.85200155]
[1770081757635,384.46,103.93,103.86,4.85200155]
[1770081758528,384.46,103.93,103.86,13.52570155]
[1770081758932,134.8318,103.94,103.86,13.52570155]
[1770081759332,519.1918,103.94,103.87,4.85903671]
[1770081759629,384.36,103.94,103.88,4.85903671]
[1770081760029,141.13662342,103.98,103.89,4.85903672]
[1770081760228,384.36,103.98,103.89,4.85903672]
[1770081760427,519.0837,103.99,103.9,4.85903672]
[1770081760634,8.6647,103.97,103.9,13.52923672]
[1770081761231,8.6654,103.96,103.9,4.85903672]
[1770081761436,134.7828,103.97,103.87,4.87224299]
[1770081761634,519.0628,103.97,103.87,4.87224299]
[1770081762333,8.6672,103.94,103.87,13.54454299]
[1770081762526,6.35872342,103.96,103.88,4.87224299]
[1770081762831,384.24,103.97,103.88,4.87224299]
[1770081763734,8.6654,103.96,103.89,13.58804545]
[1770081764629,8.6663,103.95,103.87,13.58954545]
[1770081764835,141.16062342,103.96,103.87,13.58954545]
[1770081765035,525.34062342,103.96,103.87,13.58954545]
[1770081765639,134.813,103.95,103.87,4.91704545]
[1770081767339,8.668,103.93,103.87,4.91704545]
[1770081768742,8.6671,103.94,103.87,13.58964545]
[1770081769141,134.813,103.95,103.87,13.58964545]
[1770081769341,8.6679,103.93,103.87,4.91704545]
[1770081769942,8.6687,103.92,103.87,4.91704545]
[1770081770247,6.35872342,103.92,103.85,4.94978811]
[1770081770839,390.43872342,103.94,103.86,4.94978674]
[1770081771139,525.24062342,103.96,103.87,4.94622848]
[1770081771339,8.6678,103.94,103.88,13.61802848]
[1770081772233,525.22062342,103.96,103.86,134.9237]
[1770081772234,8.6659,103.96,103.89,13.61722848]
[1770081772434,8.6659,103.96,103.9,4.94622848]
[1770081773245,8.6646,103.97,103.9,13.61582848]
[1770081773543,8.6646,103.97,103.88,323.077]
[1770081773544,8.6646,103.97,103.91,4.9469723]
[1770081773935,8.6636,103.99,103.92,4.9469723]
[1770081774542,525.09912342,104.02,103.94,4.9469723]
[1770081775043,384.02,104.02,103.94,13.6139723]
[1770081775243,134.7145,104.03,103.94,13.6139723]
[1770081775443,8.662,104.0,103.94,13.6139723]
[1770081775636,525.05782342,104.04,103.95,4.94287493]
[1770081775838,141.05782342,104.04,103.95,4.94287493]
[1770081776234,141.05782342,104.04,103.96,8.6653]
[1770081776235,134.6991,104.04,103.96,8.6653]
[1770081776436,134.6991,104.04,103.96,13.60817493]
[1770081776743,8.6605,104.02,103.96,4.94287493]
[1770081777845,525.04632342,104.05,103.96,4.94287493]
[1770081778344,525.04632342,104.05,103.97,4.90745854]
[1770081779144,134.6332,104.09,103.97,4.90745854]
[1770081779348,134.6415,104.08,104.0,4.93071827]
[1770081779743,8.6561,104.08,104.02,4.93071827]
[1770081780448,8.6553,104.09,104.02,4.93071827]
[1770081780648,134.6276,104.09,104.02,4.93071827]
[1770081780840,134.6222,104.1,104.02,4.93071827]
[1770081781246,140.94272342,104.13,104.03,4.97854551]
[1770081781652,134.5918,104.12,104.03,4.97854551]
[1770081781849,140.94272342,104.13,104.03,4.97854551]
[1770081782049,134.5881,104.12,104.04,8.6586]
[1770081782250,140.94272342,104.13,104.03,4.97854551]
[1770081782451,8.6524,104.12,104.04,134.6886]
[1770081782651,8.6524,104.12,104.05,4.97854551]
[1770081783051,8.6524,104.12,104.05,13.63594551]
[1770081783555,134.6015,104.11,104.02,4.96657053]
[1770081784355,134.6144,104.1,104.02,4.96657053]
[1770081784552,275.59901914,104.09,103.99,4.96657052]
[1770081784753,134.6397,104.08,103.99,4.96657052]
[1770081784952,8.6571,104.06,103.99,13.62887052]
[1770081785149,140.96291914,104.09,103.99,139.71987052]
[1770081785356,140.96291914,104.09,104.0,4.9652562]
[1770081785954,8.6561,104.08,104.01,13.6263562]
[1770081786857,8.6561,104.08,104.01,4.9652562]
[1770081787053,8.6563,104.07,104.01,4.9652562]
[1770081793659,8.6571,104.06,104.01,4.9652562]
[1770081794060,8.6571,104.06,103.99,5.03878712]
[1770081794456,8.6579,104.05,103.99,5.03878712]
[1770081794852,134.6678,104.06,103.98,8.6629]
[1770081795060,134.6809,104.05,103.97,5.03878712]
[1770081795360,141.01161914,104.05,103.97,5.03878712]
[1770081796054,134.6931,104.04,103.95,5.03861408]
[1770081797251,275.80651914,104.01,103.92,5.04715017]
[1770081797464,6.33071914,104.01,103.92,5.04715017]
[1770081797751,8.663,103.99,103.92,5.04715017]
[1770081798755,8.663,103.99,103.93,5.04715017]
[1770081799358,8.662,104.0,103.94,5.03108715]
[1770081799856,8.6632,103.99,103.94,5.03108715]
[1770081800058,141.06391914,104.01,103.92,5.03108714]
[1770081800658,8.6637,103.98,103.92,5.03108714]
[1770081801858,8.6637,103.98,103.92,13.69968714]
[1770081803661,8.663,103.99,103.93,8.6677]
[1770081804464,8.6638,103.98,103.92,13.69968714]
[1770081806268,8.6629,103.99,103.92,13.69968714]
[1770081807369,8.6638,103.98,103.92,13.69968714]
[1770081808668,8.663,103.99,103.92,13.69968714]
[1770081810264,141.08771914,103.99,103.91,8.6695]
[1770081810465,141.08771914,103.99,103.91,13.72079185]
[1770081811069,141.08771914,103.99,103.91,5.05129185]
[1770081811274,134.7697,103.98,103.89,5.05175936]
[1770081811574,8.6671,103.94,103.89,5.05175936]
[1770081812477,8.6671,103.94,103.86,13.72535936]
[1770081812478,8.6687,103.92,103.86,13.72535936]
[1770081812682,6.33071914,103.93,103.86,5.05175936]
[1770081813271,8.6688,103.92,103.86,13.72515936]
[1770081813475,8.6688,103.92,103.86,5.05175936]
[1770081813677,141.17071914,103.93,103.86,5.05175936]
[1770081814279,8.6696,103.91,103.86,5.05175936]
[1770081817582,8.6706,103.9,103.86,5.05175936]
[1770081817780,8.6706,103.9,103.84,13.74241928]
[1770081818985,8.6695,103.91,103.85,5.06234997]
[1770081819384,134.8486,103.92,103.85,5.06234997]